bitfinex/quotes_SOLUSD_20241107
["timestamp","ask_amount","ask_price","bid_price","bid_amount"]
[1730942790444,5.52200911,189.04,188.91,16.3968]
[1730942790445,5.52200911,189.04,188.92,19.59232813]
[1730942790646,5.52200911,189.04,188.91,16.3968]
[1730942790647,0.12549,189.03,188.91,16.3968]
[1730942791044,23.902374,189.03,188.91,16.3968]
[1730942791244,23.776884,189.03,188.95,19.59232813]
[1730942791557,23.776884,189.03,188.93,19.59232813]
[1730942792243,5.52200911,189.04,189.02,19.59232813]
[1730942792435,0.5702677,189.05,189.03,35.95872813]
[1730942792637,0.5702677,189.05,189.04,19.59232813]
[1730942792927,0.5702677,189.05,189.03,35.95872813]
[1730942793263,0.5702677,189.05,189.03,16.3664]
[1730942793440,0.5702677,189.05,189.03,35.95872813]
[1730942793930,0.5702677,189.05,189.03,16.3664]
[1730942794133,0.5702677,189.05,189.01,19.59232813]
[1730942794349,0.5702677,189.05,189.02,19.59232813]
[1730942794853,0.5702677,189.05,189.03,19.59232813]
[1730942796035,0.5702677,189.05,189.02,19.59232813]
[1730942796251,0.5702677,189.05,189.03,19.59232813]
[1730942796448,0.5702677,189.05,189.04,19.59232813]
[1730942796659,0.5702677,189.05,189.03,19.59232813]
[1730942796967,0.5702677,189.05,188.99,15.3553]
[1730942797163,0.5702677,189.05,189.02,19.59232813]
[1730942797456,0.5702677,189.05,189.01,19.59232813]
[1730942798163,0.5702677,189.05,189.02,19.59232813]
[1730942799137,0.5702677,189.05,188.99,15.3553]
[1730942799541,0.5702677,189.05,188.99,34.94762813]
[1730942800464,0.5702677,189.05,188.99,15.3553]
[1730942800868,0.5702677,189.05,188.99,34.94762813]
[1730942801041,0.5702677,189.05,188.94,15.5999]
[1730942801243,0.5702677,189.05,188.97,19.59232813]
[1730942801460,0.5702677,189.05,188.98,19.59232813]
[1730942802469,0.5702677,189.05,188.97,19.59232813]
[1730942802646,0.5702677,189.05,188.98,19.59232813]
[1730942803057,0.5702677,189.05,188.97,19.59232813]
[1730942803344,19.5429177,189.03,188.97,19.5429177]
[1730942803745,19.5429177,189.04,188.97,19.5429177]
[1730942804471,19.5429177,189.02,188.96,19.5429177]
[1730942804646,19.5429177,189.02,188.95,19.5429177]
[1730942805167,19.5429177,189.02,188.96,19.5429177]
[1730942805365,19.5429177,189.02,188.95,19.5429177]
[1730942805580,19.5429177,189.01,188.95,19.5429177]
[1730942805788,19.5429177,189.02,188.95,19.0429177]
[1730942806090,19.5429177,189.01,188.94,35.1428177]
[1730942806251,19.5429177,189.03,188.97,19.5429177]
[1730942806456,0.5702677,189.05,188.97,19.5429177]
[1730942806457,19.5429177,189.04,188.97,19.5429177]
[1730942806659,20.1131854,189.05,188.98,19.5429177]
[1730942806857,19.5429177,189.04,188.98,19.5429177]
[1730942807383,12.21269229,189.04,188.98,12.21269229]
[1730942807583,0.5702677,189.05,189.01,12.21269229]
[1730942807756,0.5702677,189.05,189.0,12.21269229]
[1730942809362,0.5702677,189.05,189.0,19.53678489]
[1730942809564,0.5702677,189.05,189.01,19.53678489]
[1730942810088,0.5702677,189.05,188.99,19.53678489]
[1730942810380,0.5702677,189.05,189.01,19.53678489]
[1730942810585,0.5702677,189.05,189.0,19.53678489]
[1730942811276,0.5702677,189.05,189.01,19.53678489]
[1730942812973,0.5702677,189.05,189.03,19.53678489]
[1730942813174,0.5702677,189.05,189.04,19.53678489]
[1730942813591,0.5702677,189.05,189.04,56.16958489]
[1730942815271,0.5702677,189.05,189.04,36.16958489]
[1730942815473,0.5702677,189.05,189.04,56.16958489]
[1730942816768,0.5702677,189.05,189.04,56.29507489]
[1730942817686,19.53678489,189.16,189.1,19.53678489]
[1730942818185,19.53678489,189.18,189.12,19.53678489]
[1730942818362,6.4257,189.29,189.17,19.53678489]
[1730942818565,5.2808,189.37,189.15,15.5568]
[1730942818793,5.51469216,189.33,189.23,19.53678489]
[1730942818975,5.51469216,189.33,189.23,55.09358489]
[1730942819282,19.53678489,189.33,189.23,55.09358489]
[1730942819484,19.53678489,189.32,189.23,55.09358489]
[1730942820584,19.53678489,189.35,189.23,55.09358489]
[1730942820799,19.53678489,189.32,189.23,55.09358489]
[1730942821500,19.53678489,189.31,189.23,35.09358489]
[1730942823396,19.53678489,189.32,189.23,35.09358489]
[1730942823600,19.53678489,189.3,189.23,35.09358489]
[1730942823801,19.53678489,189.31,189.23,19.53678489]
[1730942824110,19.53678489,189.32,189.23,19.53678489]
[1730942824405,19.53678489,189.31,189.23,19.53678489]
[1730942824594,19.53678489,189.3,189.23,19.53678489]
[1730942825701,19.53678489,189.29,189.23,19.53678489]
[1730942826201,21.01368593,189.4,189.2,15.5568]
[1730942826202,19.53678489,189.28,189.21,19.53678489]
[1730942826401,19.53678489,189.25,189.19,19.53678489]
[1730942826709,6.42,189.31,189.23,19.53678489]
[1730942826710,19.53678489,189.29,189.23,19.53678489]
[1730942827206,19.53678489,189.28,189.22,19.53678489]
[1730942827384,19.53678489,189.27,189.21,19.53678489]
[1730942827578,6.42,189.31,189.22,19.53678489]
[1730942827802,6.42,189.36,189.23,19.53678489]
[1730942828006,19.53678489,189.3,189.21,20.0]
[1730942828218,19.53678489,189.3,189.23,19.53678489]
[1730942828382,19.53678489,189.29,189.23,19.53678489]
[1730942828577,19.53678489,189.28,189.22,19.53678489]
[1730942828800,19.53678489,189.29,189.23,19.53678489]
[1730942829109,19.53678489,189.3,189.23,19.53678489]
[1730942829286,19.53678489,189.29,189.23,19.53678489]
[1730942830304,5.51364446,189.34,189.23,39.53678489]
[1730942830507,19.53678489,189.34,189.23,39.53678489]
[1730942830678,6.42,189.36,189.23,39.53678489]
[1730942830882,19.53678489,189.36,189.3,19.53678489]
[1730942831097,5.51220928,189.41,189.3,19.53678489]
[1730942831402,12.17001376,189.38,189.31,12.17001376]
[1730942831817,12.17001376,189.37,189.3,12.17001376]
[1730942832101,5.51220928,189.41,189.32,12.17001376]
[1730942832305,5.51220928,189.41,189.35,12.17001376]
[1730942832481,5.51220928,189.41,189.37,12.17001376]
[1730942832681,5.51220928,189.41,189.31,0.12549]
[1730942832682,5.51220928,189.41,189.35,12.17001376]
[1730942832977,5.51220928,189.41,189.3,20.0]
[1730942833382,24.97585598,189.41,189.3,20.0]
[1730942834311,24.97585598,189.41,189.34,19.4636467]
[1730942834312,19.4636467,189.4,189.34,19.4636467]
[1730942834786,24.97585598,189.41,189.34,19.4636467]
[1730942835184,19.4636467,189.4,189.34,19.4636467]
[1730942835382,19.4636467,189.38,189.32,19.4636467]
[1730942835781,19.4636467,189.39,189.33,19.4636467]
[1730942835982,19.4636467,189.4,189.33,19.4636467]
[1730942836405,19.4636467,189.38,189.32,19.4636467]
[1730942836619,19.4636467,189.39,189.32,19.4636467]
[1730942836779,19.4636467,189.4,189.33,19.4636467]
[1730942837283,19.4636467,189.39,189.32,19.4636467]
[1730942837497,5.51220928,189.41,189.37,19.4636467]
[1730942837803,0.5702677,189.42,189.37,19.4636467]
[1730942837995,0.5702677,189.42,189.36,19.4636467]
[1730942839093,0.5702677,189.42,189.37,19.4636467]
[1730942839681,0.5702677,189.42,189.36,19.4636467]
[1730942839884,20.0339144,189.42,189.35,19.4636467]
[1730942840084,19.4636467,189.41,189.35,19.4636467]
[1730942840286,20.0339144,189.42,189.35,19.4636467]
[1730942840798,20.0339144,189.42,189.36,19.4636467]
[1730942841309,0.5702677,189.42,189.36,19.4636467]
[1730942842283,0.5702677,189.42,189.38,19.4636467]
[1730942842697,0.5702677,189.42,189.37,19.4636467]
[1730942843191,0.5702677,189.42,189.4,19.4636467]
[1730942843397,0.5702677,189.42,189.33,16.0304]
[1730942843398,0.5702677,189.42,189.38,19.4636467]
[1730942843605,0.5702677,189.42,189.37,19.4636467]
[1730942843802,0.5702677,189.42,189.36,19.4636467]
[1730942844401,0.5702677,189.42,189.38,19.4636467]
[1730942844602,0.5702677,189.42,189.37,19.4636467]
[1730942845389,0.5702677,189.42,189.39,19.4636467]
[1730942846716,0.5702677,189.42,189.41,19.4636467]
[1730942846914,0.5702677,189.42,189.4,19.4636467]
[1730942847294,0.5702677,189.42,189.41,19.4636467]
[1730942849031,0.5702677,189.42,189.41,39.6891367]
[1730942849193,5.825073,189.5,189.43,0.1]
[1730942849392,5.825073,189.5,189.49,19.4636467]
[1730942849788,5.825073,189.5,189.49,19.5636467]
[1730942849995,5.825073,189.5,189.49,63.3405307]
[1730942850243,5.825073,189.5,189.49,39.5636467]
[1730942850518,5.825073,189.5,189.49,63.3405307]
[1730942850700,5.325073,189.5,189.49,79.1625207]
[1730942851410,0.5702677,189.61,189.59,19.4636467]
[1730942851612,0.5702677,189.61,189.57,19.4636467]
[1730942851805,0.5702677,189.61,189.51,0.1]
[1730942851806,0.5702677,189.61,189.56,19.4636467]
[1730942851997,0.5702677,189.61,189.57,19.4636467]
[1730942852194,0.5702677,189.61,189.56,19.4636467]
[1730942852414,0.5702677,189.61,189.59,19.4636467]
[1730942852617,0.5702677,189.61,189.56,0.1]
[1730942852618,0.5702677,189.61,189.6,19.4636467]
[1730942852794,0.5702677,189.61,189.59,19.4636467]
[1730942853000,0.5702677,189.61,189.6,19.4636467]
[1730942856025,0.5702677,189.8,189.65,6.1931]
[1730942856205,19.4636467,189.76,189.69,19.4636467]
[1730942856532,19.4636467,189.76,189.7,19.4636467]
[1730942857319,19.4636467,189.74,189.67,19.4636467]
[1730942857521,19.4636467,189.73,189.67,19.4636467]
[1730942857915,25.4027144,189.8,189.66,19.4636467]
[1730942857916,19.4636467,189.72,189.66,19.4636467]
[1730942858108,25.4027144,189.8,189.62,16.0185]
[1730942858109,25.51652648,189.71,189.65,25.51652648]
[1730942858316,25.51652648,189.72,189.66,25.51652648]
[1730942858915,0.5702677,189.8,189.68,25.51652648]
[1730942858916,25.51652648,189.74,189.68,25.51652648]
[1730942859236,25.51652648,189.75,189.69,25.51652648]
[1730942859604,25.51652648,189.74,189.68,25.51652648]
[1730942859927,25.51652648,189.75,189.69,25.51652648]
[1730942860134,25.51652648,189.74,189.68,25.51652648]
[1730942860311,25.51652648,189.76,189.69,25.51652648]
[1730942860636,25.51652648,189.75,189.69,25.51652648]
[1730942861127,25.51652648,189.74,189.68,25.51652648]
[1730942861503,25.51652648,189.77,189.71,25.51652648]
[1730942861709,25.51652648,189.78,189.72,25.51652648]
[1730942862403,25.51652648,189.78,189.71,25.51652648]
[1730942862819,25.51652648,189.78,189.72,25.51652648]
[1730942863714,0.5702677,189.8,189.77,25.51652648]
[1730942863917,0.5702677,189.8,189.79,25.51652648]
[1730942864217,0.5702677,189.8,189.76,25.51652648]
[1730942864421,0.5702677,189.8,189.75,25.51652648]
[1730942864739,26.08679418,189.8,189.74,25.51652648]
[1730942865033,26.08679418,189.8,189.73,25.51652648]
[1730942865208,0.5702677,189.8,189.78,25.51652648]
[1730942865412,0.5702677,189.8,189.79,25.64201648]
[1730942865608,0.5702677,189.8,189.79,25.51652648]
[1730942866134,0.5702677,189.8,189.79,49.41890048]
[1730942866335,0.5702677,189.8,189.79,25.64201648]
[1730942867215,0.5702677,189.8,189.77,25.51652648]
[1730942867734,0.5702677,189.8,189.78,25.51652648]
[1730942910287,37.99089972,190.0,189.99,69.31029444]
[1730942910469,37.99089972,190.0,189.99,69.41029444]
[1730942910853,37.99089972,190.0,189.99,69.31029444]
[1730942911858,37.99089972,190.0,189.99,69.32401905]
[1730942912685,37.99089972,190.0,189.99,69.42401905]
[1730942913177,14.09549972,190.0,189.99,73.7859443]
[1730942913378,14.09549972,190.0,189.99,90.79796356]
[1730942913562,14.09549972,190.0,189.99,128.44557992]
[1730942913765,200.0,190.04,190.03,0.22549]
[1730942913974,200.0,190.04,190.03,78.53648079]
[1730942914285,200.0,190.04,190.03,103.95812584]
[1730942914602,199.08804016,190.04,190.03,103.95812584]
[1730942914958,199.08804016,190.04,190.03,103.36335948]
[1730942915154,198.96264016,190.04,190.03,71.52335948]
[1730942915377,198.96264016,190.04,190.03,101.19300984]
[1730942915962,198.96264016,190.04,190.03,101.09300984]
[1730942916152,198.96264016,190.04,190.03,30.13986948]
[1730942916360,197.734223,190.04,190.03,55.66151453]
[1730942916577,197.734223,190.04,190.03,109.37977089]
[1730942916578,192.60885102,190.04,190.03,109.37977089]
[1730942916883,145.73016102,190.04,190.03,104.76154646]
[1730942917072,22.87927562,190.04,190.03,120.72634073]
[1730942917384,3.22558932,190.04,190.03,121.16967664]
[1730942917579,2.6,190.04,190.03,141.16967664]
[1730942917784,1.25117864,190.04,190.03,109.398999]
[1730942918086,0.5702677,190.17,190.16,0.1]
[1730942918287,0.5702677,190.17,190.16,51.609068]
[1730942918665,0.5702677,190.17,190.16,6.00818512]
[1730942918877,0.5702677,190.17,190.16,1.15070004]
[1730942919076,23.44566058,190.21,190.15,25.47539288]
[1730942919282,6.3601,190.25,190.12,4.65462166]
[1730942919283,25.37539288,190.23,190.16,25.47539288]
[1730942919469,25.37539288,190.22,190.16,25.37539288]
[1730942919668,6.3601,190.25,190.14,0.1]
[1730942919872,6.3601,190.25,190.18,25.50088288]
[1730942919873,25.37539288,190.24,190.18,25.50088288]
[1730942920193,6.3601,190.25,190.21,25.50088288]
[1730942920393,5.48500366,190.28,190.25,0.1]
[1730942920689,21.4577,190.32,190.28,0.12549]
[1730942921063,21.4577,190.32,190.3,25.37539288]
[1730942921390,0.44213,190.33,190.32,29.77584573]
[1730942921692,0.1,190.48,190.38,1.6123977]
[1730942921868,0.1,190.48,190.39,15.31428791]
[1730942922069,0.1,190.48,190.43,0.12549]
[1730942922386,0.1,190.48,190.43,25.50088288]
[1730942922564,0.1,190.48,190.43,36.81962678]
[1730942922889,0.1,190.45,190.36,4.87641627]
[1730942923090,9.736164,190.44,190.41,25.37539288]
[1730942923292,9.636164,190.44,190.43,25.37539288]
[1730942923489,9.636164,190.44,190.43,31.6621231]
[1730942923674,9.636164,190.44,190.43,36.86572622]
[1730942924172,9.636164,190.44,190.43,37.9149885]
[1730942924360,9.636164,190.44,190.43,12.53959562]
[1730942924560,9.636164,190.44,190.43,36.86572622]
[1730942925365,9.636164,190.44,190.43,31.75386551]
[1730942925573,9.636164,190.44,190.43,32.80323889]
[1730942926088,9.636164,190.44,190.43,36.98909281]
[1730942926284,9.510764,190.44,190.43,36.98909281]
[1730942926881,3.87361442,190.44,190.43,36.98909281]
[1730942927092,3.87361442,190.44,190.43,45.08157605]
[1730942927798,3.87361442,190.44,190.43,48.95519105]
[1730942927974,3.87361442,190.44,190.43,40.73721781]
[1730942928770,3.87361442,190.44,190.43,40.86270781]
[1730942928989,3.87361442,190.44,190.43,4.92298838]
[1730942929294,3.97361442,190.44,190.41,25.37539288]
[1730942929495,3.97361442,190.44,190.42,26.42493486]
[1730942929790,3.87361442,190.44,190.42,26.42493486]
[1730942929971,3.87361442,190.44,190.43,25.37539288]
[1730942930478,3.87361442,190.44,190.43,26.42476529]
[1730942930779,3.87361442,190.44,190.43,30.66418905]
[1730942930975,3.87361442,190.44,190.43,36.75035167]
[1730942931992,4.07361442,190.44,190.43,1.04937241]
[1730942932196,0.1,190.36,190.15,1.04980253]
[1730942932372,0.1,190.38,190.3,20.999245]
[1730942932573,0.1,190.38,190.31,1.04980368]
[1730942932793,0.1,190.42,190.31,1.04980368]
[1730942933081,0.1,190.39,190.32,5.730192]
[1730942933296,0.1,190.36,190.35,25.37539288]
[1730942933673,0.1,190.38,190.35,25.37539288]
[1730942933874,0.1,190.36,190.31,1.04988918]
[1730942934094,0.1,190.39,190.32,0.12549]
[1730942934291,0.1,190.41,190.38,25.37539288]
[1730942934500,6.1891,190.43,190.33,1.04977004]
[1730942934501,0.1,190.42,190.39,1.1752282]
[1730942934710,6.1891,190.43,190.39,1.1752282]
[1730942935003,3.87361442,190.44,190.43,0.12549]
[1730942935175,3.87361442,190.44,190.43,26.55032979]
[1730942935901,3.74821442,190.44,190.43,32.97472179]
[1730942936981,3.74821442,190.44,190.43,7.59932891]
[1730942937414,3.74821442,190.44,190.43,26.55032979]
[1730942937602,3.74821442,190.44,190.43,1.17493691]
[1730942937991,3.74821442,190.44,190.43,26.55032979]
[1730942938299,3.74821442,190.44,190.43,1.17493691]
[1730942938605,3.74821442,190.44,190.43,30.9714124]
[1730942938908,3.74821442,190.44,190.4,25.37539288]
[1730942939072,3.74821442,190.44,190.42,0.12549]
[1730942939275,3.62281442,190.44,190.43,26.42484504]
[1730942939477,3.62281442,190.44,190.43,37.91595863]
[1730942939701,3.62281442,190.44,190.43,33.2341538]
[1730942940008,3.62281442,190.44,190.43,7.98425092]
[1730942940508,0.1,190.41,190.37,4.21387705]
[1730942940677,28.9982073,190.44,190.38,26.42511813]
[1730942940873,3.72281442,190.44,190.38,1.04972525]
[1730942941098,0.1,190.4,190.33,25.37539288]
[1730942941303,0.1,190.41,190.33,1.04972119]
[1730942941601,0.1,190.43,190.33,5.53587602]
[1730942941810,3.62281442,190.44,190.34,0.12549]
[1730942941985,3.62281442,190.44,190.36,0.12549]
[1730942942298,3.62281442,190.44,190.37,11.23120109]
[1730942942501,3.62281442,190.44,190.41,41.14760432]
[1730942942706,3.62281442,190.44,190.43,0.12549]
[1730942942999,3.62281442,190.44,190.43,47.14112693]
[1730942943204,47.57170432,190.5,190.43,47.14112693]
[1730942943413,0.5702677,191.28,190.67,0.1]
[1730942943414,0.5702677,190.72,190.67,0.1]
[1730942943706,41.14760432,190.68,190.62,0.1]
[1730942944004,41.14760432,190.64,190.54,0.1]
[1730942944305,0.0702677,190.72,190.56,0.1]
[1730942944480,41.14760432,190.59,190.57,0.1]
[1730942944782,41.14760432,190.62,190.58,0.1]
[1730942944985,41.14760432,190.62,190.59,0.1]
[1730942945185,41.14760432,190.63,190.61,0.1]
[1730942945388,41.14760432,190.65,190.62,0.1]
[1730942945909,41.14760432,190.63,190.58,0.1]
[1730942946212,41.14760432,190.59,190.54,0.1]
[1730942946394,6.2261,190.58,190.54,0.1]
[1730942946711,41.14760432,190.55,190.49,0.1]
[1730942946884,6.2261,190.58,190.49,0.1]
[1730942947087,41.14760432,190.57,190.53,0.1]
[1730942947289,41.14760432,190.56,190.54,0.1]
[1730942947595,0.0702677,190.72,190.71,0.2]
[1730942947785,0.02,190.73,190.71,0.2]
[1730942947786,41.71787202,190.91,190.83,0.1]
[1730942947987,41.14760432,190.89,190.82,0.1]
[1730942948214,46.85732702,190.88,190.81,0.1]
[1730942948428,46.85732702,190.88,190.83,0.1]
[1730942948721,41.14760432,190.84,190.79,0.2]
[1730942948929,41.14760432,190.81,190.8,0.1]
[1730942949420,41.14760432,190.81,190.64,5.298]
[1730942949421,41.14760432,190.85,190.82,0.1]
[1730942949633,41.14760432,190.85,190.8,0.2]
[1730942949801,5.7097227,190.88,190.8,0.1]
[1730942949802,41.14760432,190.83,190.8,0.1]
[1730942950002,41.14760432,190.83,190.79,0.1]
[1730942950220,41.42263732,190.85,190.78,0.2]
[1730942950406,41.14760432,190.83,190.76,0.1]
[1730942950606,41.14760432,190.83,190.77,0.1]
[1730942950921,41.14760432,190.81,190.75,0.1]
[1730942951123,41.14760432,190.78,190.73,0.1]
[1730942951306,41.14760432,190.78,190.72,0.1]
[1730942951514,41.42263732,190.85,190.7,20.956729]
[1730942951515,41.14760432,190.76,190.73,0.1]
[1730942951715,23.776884,190.84,190.73,0.1]
[1730942952016,41.42263732,190.85,190.73,0.1]
[1730942952224,41.14760432,190.75,190.73,0.1]
[1730942952613,5.46915494,190.84,190.73,0.1]
[1730942952614,41.14760432,190.76,190.73,0.1]
[1730942952816,41.14760432,190.75,190.69,0.2]
[1730942953013,41.14760432,190.72,190.69,0.1]
[1730942953223,41.14760432,190.72,190.7,0.1]
[1730942953403,41.14760432,190.74,190.71,0.1]
[1730942953608,41.14760432,190.74,190.7,0.1]
[1730942953819,41.14760432,190.75,190.72,0.1]
[1730942954034,41.14760432,190.77,190.73,0.1]
[1730942954205,20.0,190.83,190.73,0.1]
[1730942954407,41.14760432,190.76,190.73,0.1]
[1730942954937,41.14760432,190.8,190.75,0.1]
[1730942955233,41.14760432,190.8,190.76,0.1]
[1730942955431,41.42263732,190.85,190.74,0.22549]
[1730942955432,41.14760432,190.81,190.78,0.1]
[1730942955936,41.14760432,190.8,190.77,0.1]
[1730942956134,41.14760432,190.79,190.77,0.2]
[1730942956348,41.14760432,190.8,190.78,0.1]
[1730942956942,41.14760432,190.81,190.78,0.2]
[1730942957244,41.14760432,190.8,190.78,0.1]
[1730942957405,41.14760432,190.8,190.78,0.2]
[1730942957607,41.14760432,190.8,190.78,0.1]
[1730942957834,41.14760432,190.8,190.79,0.1]
[1730942958035,41.14760432,190.81,190.79,0.1]
[1730942958419,41.14760432,190.81,190.8,0.1]
[1730942958840,0.275033,190.85,190.84,0.2]
[1730942959007,5.7097227,190.88,190.84,0.2]
[1730942959008,5.4847557,190.88,190.87,0.32549]
[1730942959208,5.4847557,190.88,190.87,47.31824645]
[1730942959441,5.4847557,190.88,190.87,41.24760432]
[1730942959737,5.4847557,190.88,190.87,47.63535926]
[1730942959917,5.4847557,190.88,190.87,53.0776135]
[1730942960323,3.99206969,190.88,190.87,53.0776135]
[1730942960527,3.99206969,190.88,190.87,54.12441334]
[1730942961036,3.99206969,190.88,190.87,61.01173082]
[1730942961242,3.99206969,190.88,190.87,59.96493098]
[1730942961410,3.99206969,190.88,190.87,59.83944098]
[1730942961616,3.99206969,190.88,190.87,52.9521235]
[1730942961915,3.99206969,190.88,190.87,52.8521235]
[1730942962127,3.99206969,190.88,190.81,41.14760432]
[1730942962333,3.99206969,190.88,190.8,0.1]
[1730942962630,3.99206969,190.88,190.87,0.1]
[1730942963341,45.13967401,190.88,190.84,0.1]
[1730942963634,41.14760432,190.85,190.81,0.2]
[1730942963823,3.99206969,190.88,190.82,0.1]
[1730942964314,41.14760432,190.83,190.81,1.14739228]
[1730942964509,41.14760432,190.82,190.81,0.1]
[1730942964811,41.14760432,190.83,190.81,4.77186813]
[1730942965011,41.14760432,190.83,190.82,5.16297924]
[1730942965232,41.14760432,190.83,190.82,5.06297924]
[1730942965441,41.14760432,190.83,190.81,0.1]
[1730942965746,3.99206969,190.88,190.76,0.1]
[1730942966039,41.14760432,190.8,190.76,0.1]
[1730942966413,3.99206969,190.88,190.7,1.04781308]
[1730942966414,45.13967401,190.88,190.81,0.1]
[1730942966615,45.13967401,190.88,190.82,4.85852109]
[1730942966932,45.13967401,190.88,190.79,0.1]
[1730942966933,41.14760432,190.86,190.79,0.2]
[1730942967114,41.14760432,190.8,190.7,0.1]
[1730942967309,41.14760432,190.76,190.72,0.1]
[1730942967715,41.14760432,190.78,190.73,0.1]
[1730942967915,41.14760432,190.77,190.73,0.1]
[1730942968330,41.14760432,190.76,190.73,4.80615998]
[1730942968516,41.14760432,190.75,190.72,0.1]
[1730942968832,63.75740432,190.85,190.72,0.1]
[1730942968833,41.14760432,190.78,190.73,4.9186822]
[1730942969039,41.14760432,190.77,190.73,4.9186822]
[1730942969244,41.14760432,190.78,190.73,4.9186822]
[1730942969536,41.14760432,190.77,190.73,4.9186822]
[1730942969742,41.14760432,190.78,190.73,4.9186822]
[1730942969947,41.14760432,190.79,190.73,4.9186822]
[1730942970244,41.14760432,190.84,190.78,0.1]
[1730942970443,3.99206969,190.88,190.8,41.14760432]
[1730942970444,41.14760432,190.86,190.8,41.14760432]
[1730942970622,41.14760432,190.86,190.8,4.89405442]
[1730942970819,41.14760432,190.86,190.81,0.1]
[1730942971045,3.99206969,190.88,190.85,0.1]
[1730942971217,3.99206969,190.88,190.86,0.1]
[1730942971423,3.99206969,190.88,190.85,0.1]
[1730942972045,45.13967401,190.88,190.85,0.1]
[1730942972229,41.14760432,190.87,190.85,0.1]
[1730942972543,45.13967401,190.88,190.85,0.1]
[1730942973325,41.14760432,190.86,190.81,0.1]
[1730942973525,41.14760432,190.86,190.82,4.71414887]
[1730942973835,3.99206969,190.88,190.82,4.71414887]
[1730942973836,41.14760432,190.87,190.83,0.1]
[1730942974026,41.14760432,190.87,190.83,4.98387109]
[1730942974231,3.99206969,190.88,190.83,4.98387109]
[1730942974553,3.99206969,190.88,190.84,4.89903776]
[1730942974725,3.99206969,190.88,190.84,4.99903776]
[1730942975442,3.99206969,190.88,190.86,41.24760432]
[1730942975646,3.99206969,190.88,190.87,4.93500442]
[1730942976351,45.13967401,190.88,190.75,1.14734051]
[1730942976524,41.14760432,190.79,190.76,0.1]
[1730942976849,41.14760432,190.8,190.76,0.1]
[1730942977023,41.14760432,190.79,190.72,41.24760432]
[1730942977328,41.14760432,190.78,190.71,41.14760432]
[1730942977533,41.14760432,190.76,190.7,0.1]
[1730942977736,41.14760432,190.75,190.68,41.14760432]
[1730942978145,41.14760432,190.78,190.71,41.24760432]
[1730942978348,41.14760432,190.78,190.72,0.1]
[1730942978551,41.14760432,190.77,190.7,41.24760432]
[1730942978749,41.14760432,190.79,190.72,41.24760432]
[1730942979050,41.14760432,190.8,190.72,41.24760432]
[1730942979230,41.14760432,190.76,190.71,0.1]
[1730942979431,41.14760432,190.76,190.67,0.1]
[1730942979432,41.14760432,190.75,190.7,0.1]
[1730942979752,41.14760432,190.71,190.65,5.46759414]
[1730942980063,41.14760432,190.67,190.61,0.1]
[1730942980259,41.14760432,190.7,190.63,41.24760432]
[1730942980431,41.14760432,190.67,190.61,0.1]
[1730942980629,43.776884,190.77,190.65,0.1]
[1730942980828,41.14760432,190.71,190.66,0.1]
[1730942981050,41.14760432,190.71,190.64,41.14760432]
[1730942981353,43.776884,190.77,190.64,41.14760432]
[1730942981354,41.14760432,190.7,190.66,0.1]
[1730942981727,41.14760432,190.7,190.64,41.24760432]
[1730942981928,6.4703,190.78,190.68,0.1]
[1730942981929,41.14760432,190.73,190.68,0.1]
[1730942982149,41.14760432,190.75,190.69,0.2]
[1730942982358,41.14760432,190.74,190.7,0.1]
[1730942982957,43.23702997,190.71,190.58,0.1]
[1730942983250,43.23702997,190.61,190.55,0.1]
[1730942983458,43.23702997,190.59,190.52,43.33702997]
[1730942983644,43.23702997,190.57,190.51,5.47308152]
[1730942983848,43.23702997,190.54,190.51,5.47308152]
[1730942984051,43.776884,190.62,190.47,0.1]
[1730942984252,6.6657,190.63,190.53,0.1]
[1730942984756,6.6657,190.63,190.55,0.1]
[1730942985052,43.23702997,190.6,190.53,43.33702997]
[1730942985350,43.23702997,190.59,190.53,43.33702997]
[1730942985554,6.6657,190.63,190.58,0.1]
[1730942985864,43.23702997,190.67,190.62,0.1]
[1730942986031,6.3736,190.71,190.59,0.1]
[1730942986231,43.23702997,190.63,190.49,0.1]
[1730942986437,11.84742581,190.71,190.54,0.1]
[1730942986646,6.3736,190.71,190.58,0.1]
[1730942986843,6.3736,190.71,190.57,0.1]
[1730942987048,20.0,190.7,190.58,0.1]
[1730942987343,6.3736,190.71,190.6,0.1]
[1730942987540,43.23702997,190.65,190.6,0.1]
[1730942987741,43.23702997,190.69,190.63,0.1]
[1730942987955,6.3736,190.71,190.65,0.1]
[1730942987956,43.23702997,190.7,190.65,0.1]